Cogmind - Beta 11.1 --- EXPLORER MODE // 2022.06.10 @ 00:10:01 // Winter2019/RPGLIKE Player: Grimbling Result: Escaped! Performance ------------- Evolutions (9) 4500 Regions Visited (28) 5600 Robots Destroyed (338) 1690 Value Destroyed (14936) 14936 Prototype IDs (72) 1440 Alien Tech Used (3) 600 Bonus (20929) 20929 TOTAL SCORE: 49695 Bonus ------- Triggered High Security 500 Triggered Max Security 1000 High Alert Combat Kills 2229 Follower Combat Kills 1184 Network Hubs Disabled 800 Met Imprinter 300 Destroyed Z-Imprinter 1000 Triggered Deep Caves Wall 500 Exposed GOLEM Chamber 500 Met Warlord at Base 500 MAIN.C Attacked Warlord 500 Built Enhanced Grunts 300 A7 Reached Mainframe 300 Met R17 at Cetus 500 Found Hidden Lab 3000 Scanned by Researcher 500 Destroyed MAIN.C Guards 500 Met MAIN.C 5000 Met Warlord at Command 2000 Win 3000 Friendly Fire -3184 Cogmind --------- Core Integrity 990/1000 Matter 241/300 Energy 885/920 System Corruption 2% Temperature Cool (30) Movement Hovering (20) Location To Epsilon Eridani Parts ------- > --- POWER (5) -------- Zionite Light DM Reactor Zionite Light DM Reactor Graviton Reactor Light Quantum Reactor Light Quantum Reactor > --- PROPULSION (7) --- Zionite Glidesys II Zionite Glidesys II Zionite Glidesys II Zionite Glidesys II Combat Antigrav System Combat Linear Gravjet Combat Linear Gravjet > --- UTILITY (9) ------ Zionite Metafield Generator Advanced Signal Interpreter Advanced Terrain Scanner Improved Particle Charger Experimental Reaction Control System Advanced Phase Shifter Medium Regenerative Plating AEGIS Remote Shield > --- WEAPON (4) ------- Heavy Dispersion Rifle Heavy Dispersion Rifle Heavy Dispersion Rifle Heavy Dispersion Rifle > --- INVENTORY (6) ---- Advanced Thermal Defense Suite Vortex Cannon (26) Improved Potential Cannon Peak State ------------ > --- POWER ------------ Zionite Light DM Reactor Zionite Light DM Reactor Graviton Reactor Quantum Reactor Light Quantum Reactor > --- PROPULSION ------- Zionite Glidesys II Zionite Glidesys II Zionite Glidesys II Zionite Glidesys II Combat Antigrav System Combat Linear Gravjet Combat Linear Gravjet > --- UTILITY ---------- Zionite Metafield Generator Advanced Signal Interpreter Advanced Terrain Scanner Experimental Reaction Control System Advanced Phase Shifter Medium Regenerative Plating Advanced Thermal Defense Suite Advanced EM Disruption Field AEGIS Remote Shield > --- WEAPON ----------- Heavy Dispersion Rifle Heavy Dispersion Rifle Improved Potential Cannon > --- INVENTORY -------- Improved Particle Charger Antimissile System Heavy Dispersion Rifle Heavy Dispersion Rifle Vortex Cannon [Rating: 219] Favorites ----------- Power Zionite Light DM Reactor Engine Heavy Deuterium Engine Power Core Enhanced Nuclear Core Reactor Zionite Light DM Reactor Propulsion Zionite Glidesys II Leg Aluminum Leg Hover Unit Zionite Glidesys II Flight Unit Cooled Field Propulsion Drive Utility Zionite Metafield Generator Device Zionite Metafield Generator Processor Advanced Signal Interpreter Protection Medium Regenerative Plating Weapon Zionite Laser-M Energy Gun Zionite Laser-M Energy Cannon Improved Potential Cannon Ballistic Gun Assault Rifle Launcher Advanced EMP Blaster Impact Weapon Makeshift Hammer Piercing Weapon Makeshift Spear Build | -11 -10 -9 -8 -8 -7 -7 -7 -7 -7 -6 -6 -6 -6 -6 -6 -5 -5 -5 -5 -4 -4 -4 -4 -3 -3 -2 -1 -1 ------- Run | Scr Mat Mat Mat Sto Fac Low Low Zio Dee Pro Fac Ext Cet Arc Hub Fac Upp Upp War Pro Fac Arm Lab Res Tes Res Acc Com Slots Evolved 20 | 4 . 2 3 1 3 . . . . 1 . 1 . . . . . 1 . . . 1 . 1 . 1 . 1 Power 3 | . . . 1 . . . . . . 1 . . . . . . . 1 . . . . . . . . . . Propulsion 6 | 1 . 1 2 . . . . . . . . . . . . . . . . . . . . 1 . . . 1 Utility 8 | 2 . 1 . 1 2 . . . . . . . . . . . . . . . . 1 . . . 1 . . Weapon 3 | 1 . . . . 1 . . . . . . 1 . . . . . . . . . . . . . . . . Parts Attached 226 | 8 3 5 3 17 9 . 2 8 24 1 5 3 5 . 2 6 . 1 4 . 1 41 5 6 17 15 9 26 Power 26 | 1 1 . . 1 3 . . . 3 1 . . . . . 2 . 1 . . . 5 . . 3 . . 5 Engine 7 | 1 1 . . 1 1 . . . 1 . . . . . . 2 . . . . . . . . . . . . Core 8 | . . . . . 2 . . . . . . . . . . . . 1 . . . 3 . . 2 . . . Reactor 11 | . . . . . . . . . 2 1 . . . . . . . . . . . 2 . . 1 . . 5 Propulsion 45 | 2 . 1 2 6 . . . . 5 . 1 . . . . 2 . . . . 1 19 . 1 1 . 2 2 Treads . | . . . . . . . . . . . . . . . . . . . . . . . . . . . . . Leg 2 | 2 . . . . . . . . . . . . . . . . . . . . . . . . . . . . Wheel . | . . . . . . . . . . . . . . . . . . . . . . . . . . . . . Hover 38 | . . 1 2 6 . . . . 5 . 1 . . . . 2 . . . . 1 14 . 1 1 . 2 2 Flight 5 | . . . . . . . . . . . . . . . . . . . . . . 5 . . . . . . Utility 78 | 3 . 1 . 2 2 . . 5 10 . 4 2 3 . . 2 . . 2 . . 8 2 3 7 9 4 9 Device 60 | 2 . . . . 2 . . 5 7 . 2 2 1 . . 2 . . 2 . . 6 2 3 6 8 4 6 Storage . | . . . . . . . . . . . . . . . . . . . . . . . . . . . . . Processor 6 | . . . . 2 . . . . . . 2 . . . . . . . . . . . . . 1 1 . . Hackware . | . . . . . . . . . . . . . . . . . . . . . . . . . . . . . Protection 12 | 1 . 1 . . . . . . 3 . . . 2 . . . . . . . . 2 . . . . . 3 Artifact . | . . . . . . . . . . . . . . . . . . . . . . . . . . . . . Weapon 77 | 2 2 3 1 8 4 . 2 3 6 . . 1 2 . 2 . . . 2 . . 9 3 2 6 6 3 10 Energy Gun 64 | . . 3 1 6 4 . 2 1 6 . . 1 2 . 2 . . . 1 . . 9 3 2 5 6 2 8 Energy Cannon 6 | . . . . 1 . . . . . . . . . . . . . . 1 . . . . . 1 . 1 2 Ballistic Gun 4 | 2 2 . . . . . . . . . . . . . . . . . . . . . . . . . . . Ballistic Cannon . | . . . . . . . . . . . . . . . . . . . . . . . . . . . . . Launcher 1 | . . . . 1 . . . . . . . . . . . . . . . . . . . . . . . . Special Weapon . | . . . . . . . . . . . . . . . . . . . . . . . . . . . . . Impact Weapon 1 | . . . . . . . . 1 . . . . . . . . . . . . . . . . . . . . Slashing Weapon . | . . . . . . . . . . . . . . . . . . . . . . . . . . . . . Piercing Weapon 1 | . . . . . . . . 1 . . . . . . . . . . . . . . . . . . . . Special Melee Weapon . | . . . . . . . . . . . . . . . . . . . . . . . . . . . . . Unidentified Prototypes 53 | . . . 1 5 2 . . 2 11 . 1 . 3 . 1 1 . . 2 . . 2 6 4 8 4 . . Parts Lost 2 | . . . . . . . . . 1 . . . . . . . . . . . . . . 1 . . . . Power 1 | . . . . . . . . . . . . . . . . . . . . . . . . 1 . . . . Propulsion . | . . . . . . . . . . . . . . . . . . . . . . . . . . . . . Utility 1 | . . . . . . . . . 1 . . . . . . . . . . . . . . . . . . . Weapon . | . . . . . . . . . . . . . . . . . . . . . . . . . . . . . Highest Loss Streak 1 | . . . . . . . . . 1 . . . . . . . . . . . . . . 1 . . . . To Critical Strikes . | . . . . . . . . . . . . . . . . . . . . . . . . . . . . . Average Slot Usage (%) 95 | . 100 84 81 86 99 100 100 99 99 94 99 100 99 100 100 100 100 96 100 100 100 97 96 93 99 96 94 94 Engine 4 | . 12 10 7 10 4 5 5 5 4 5 5 5 5 5 5 5 5 5 5 5 5 . . . . . . . Core 1 | . . . . . 6 5 5 5 2 . . . . . . . . 1 5 5 5 4 4 4 4 1 . . Reactor 7 | . . . . . . . . . 3 11 11 10 10 10 10 10 10 10 10 10 10 13 13 13 16 16 16 19 Leg 2 | . 25 21 14 . . . . . . . . . . . . . . . . . . . . . . . . . Hover 23 | . . . 9 29 30 29 29 29 29 27 27 26 26 26 26 26 26 25 25 25 25 21 22 24 26 25 25 27 Device 24 | . 25 21 15 14 21 23 23 22 26 27 27 26 26 26 26 26 26 25 25 25 25 27 26 26 25 28 29 25 Processor 5 | . . . . 5 11 11 11 11 6 . 4 5 5 5 5 5 5 5 5 5 5 4 4 4 4 4 4 4 Protection 6 | . 12 11 15 11 5 5 5 5 4 5 5 5 4 5 5 5 5 5 5 5 5 3 4 4 4 4 4 3 Energy Gun 16 | . . 18 15 14 15 17 17 15 17 16 16 19 20 21 21 21 21 20 20 20 20 17 18 17 16 16 15 13 Naked Turns . | . . . . . . . . . . . . . . . . . . . . . . . . . . . . . Heaviest Build 141 | 12 18 25 25 32 44 44 48 50 60 63 63 65 72 72 72 72 69 74 74 74 74 92 106 94 115 105 115 141 Greatest Support 134 | 20 20 30 32 50 50 50 55 55 93 93 93 93 93 93 93 93 93 93 93 93 93 94 94 105 105 105 118 134 Greatest Overweight (x) 3 | . . . . . . . . . . . . . . . . . . . . . . 3 1 . 1 . . 1 Average Overweight (x) . | . . . . . . . . . . . . . . . . . . . . . . . . . . . . . Largest Inventory Capacity 6 | 3 3 4 4 4 5 5 5 5 5 5 5 5 5 5 5 5 5 5 5 6 6 6 6 6 6 6 6 6 Average Capacity 5 | 2 3 3 4 4 4 5 5 5 5 5 5 5 5 5 5 5 5 5 5 5 6 6 6 6 6 6 6 6 Most Carried 6 | . 2 4 4 4 5 5 5 5 5 5 5 5 5 4 5 5 5 5 5 5 6 6 6 6 6 6 6 6 Average Carried 4 | . . 1 1 3 4 5 4 4 4 4 4 4 4 4 4 4 5 5 5 5 5 5 5 5 5 5 5 5 Final Capacity 6 | 3 3 4 4 4 5 5 5 5 5 5 5 5 5 5 5 5 5 5 5 6 6 6 6 6 6 6 6 6 Final Carried 6 | . 1 1 2 4 5 5 4 5 5 5 5 5 4 4 5 5 5 5 5 5 6 6 6 6 5 6 6 4 Class Distribution -------------------- 38% | Scavenger-Scout 21% | Generator-Scout 17% | Hacker-Scout 13% | Hacker-Skirmisher 6% | Commander-Scout Dominant Class ---------------- Hacker-Skirmisher | -10/Materials Hacker-Skirmisher | -9/Materials Hacker-Skirmisher | -8/Materials Commander-Scout | -8/Storage Commander-Scout | -7/Factory Hacker-Scout | -7/Lower Caves Hacker-Scout | -7/Lower Caves Hacker-Scout | -7/Zion Scavenger-Scout | -7/Deep Caves Scavenger-Sprinter | -6/Proximity Caves Scavenger-Scout | -6/Factory Scavenger-Scout | -6/Extension Scavenger-Scout | -6/Cetus Scavenger-Scout | -6/Archives Scavenger-Scout | -6/Hub_04(d) Scavenger-Scout | -5/Factory Scavenger-Scout | -5/Upper Caves Scavenger-Scout | -5/Upper Caves Scavenger-Scout | -5/Warlord Scavenger-Scout | -4/Proximity Caves Scavenger-Scout | -4/Factory Scavenger-Scout | -4/Armory Generator-Scout | -4/Lab Generator-Scout | -3/Research Generator-Scout | -3/Testing Generator-Scout | -2/Research Generator-Scout | -1/Access Generator-Scout | -1/Command Resources | -11 -10 -9 -8 -8 -7 -7 -7 -7 -7 -6 -6 -6 -6 -6 -6 -5 -5 -5 -5 -4 -4 -4 -4 -3 -3 -2 -1 -1 ----------- Run | Scr Mat Mat Mat Sto Fac Low Low Zio Dee Pro Fac Ext Cet Arc Hub Fac Upp Upp War Pro Fac Arm Lab Res Tes Res Acc Com Matter Collected 2682 | 346 54 60 63 188 100 . 20 70 240 15 50 30 84 . 20 40 20 10 36 4 . 420 . 130 190 73 107 312 Remotely 559 | 82 54 60 63 180 100 . 20 . . . . . . . . . . . . . . . . . . . . . Salvage Created 14567 | 171 50 415 620 1544 697 68 468 . 857 229 506 789 810 206 1363 181 329 259 . 627 95 1726 . 125 749 193 812 678 Parts 759 | 18 11 34 32 80 36 10 13 . 47 5 24 43 31 11 64 15 16 25 . 15 8 102 . 5 31 10 43 30 Haulers Intercepted 12 | . . . 1 3 . . . . . . 2 . . . 3 . . . . . . . . 1 1 . 1 . Recyclers Shooed 4 | . 2 . 1 1 . . . . . . . . . . . . . . . . . . . . . . . . Parts Field Recycled . | . . . . . . . . . . . . . . . . . . . . . . . . . . . . . Retrieved Matter . | . . . . . . . . . . . . . . . . . . . . . . . . . . . . . Parts Self-Destructed . | . . . . . . . . . . . . . . . . . . . . . . . . . . . . . Prevented . | . . . . . . . . . . . . . . . . . . . . . . . . . . . . . Kills | -11 -10 -9 -8 -8 -7 -7 -7 -7 -7 -6 -6 -6 -6 -6 -6 -5 -5 -5 -5 -4 -4 -4 -4 -3 -3 -2 -1 -1 ------- Run | Scr Mat Mat Mat Sto Fac Low Low Zio Dee Pro Fac Ext Cet Arc Hub Fac Upp Upp War Pro Fac Arm Lab Res Tes Res Acc Com Combat Hostiles Destroyed 238 | . 2 12 14 29 10 6 8 . 13 4 6 16 11 2 9 4 8 7 . 7 1 33 . . 7 2 8 19 Guns 227 | . 2 12 14 28 10 6 7 . 13 4 6 16 11 2 3 4 8 7 . 7 1 33 . . 7 2 8 16 Cannons 1 | . . . . . . . . . . . . . . . . . . . . . . . . . . . . 1 AOE 6 | . . . . 1 . . . . . . . . . . 3 . . . . . . . . . . . . 2 Classes Destroyed 25 | 2 2 2 4 3 . . 2 . 2 . . 2 . . . . . . . . . 3 . . 1 . 1 1 Worker 19 | . . . 1 . 4 . . . . . 2 . . . 6 . . . . . . . . . . . 4 2 Builder 7 | . . . . . . . . . . . . 2 . . 3 . . . . . . . . . . . 2 . Tunneler 5 | 5 . . . . . . . . . . . . . . . . . . . . . . . . . . . . Hauler 12 | . . . 1 3 . . . . . . 2 . . . 3 . . . . . . . . 1 1 . 1 . Recycler 4 | 1 . . . 1 1 . . . . . . . . . 1 . . . . . . . . . . . . . Mechanic 1 | . . . . . . . . . . . . . . . . . . . . . . . . . . . . 1 Operator 15 | . . . . 2 1 . . . . . . 1 . . 2 . . . . . 1 3 . 1 1 1 1 1 Watcher 32 | . 2 3 . 2 2 . . . . . 4 1 2 . 4 . . . . . 2 4 . . 1 1 3 1 Swarmer 67 | . 2 3 4 . 2 6 . . . 1 6 5 4 . 2 . 5 1 . 2 . 14 . . 4 . . 6 Cutter 1 | . . . . . . . . . . . . . . . . . . . . . . . . . . . 1 . Saboteur 3 | . . . . . . . . . . . . . . . . . . . . . . 2 . . . . . 1 Grunt 62 | . . 7 4 18 5 . 2 . . 1 . 4 1 . 3 1 . . . 2 . 7 . . 3 . 1 3 Brawler 2 | . . . 1 . . . . . . . . . . . . . . . . . . . . . . . . 1 Duelist 7 | . . . . 1 . . . . . . . . . . . . 2 2 . . . . . . . . . 2 Protector 2 | . . . . 2 . . . . . . . . . . . . . . . . . . . . . . . . Researcher 2 | . . . . . . . . . . . . . . . . . . . . . . . . . 2 . . . Sentry 38 | . . 2 3 7 2 . . . . 1 . 4 . 2 4 1 1 1 . . . 5 . . . 2 2 1 Demolisher 1 | . . . . . . . . . . . . . . . . . . . . . . 1 . . . . . . Specialist 2 | . . . . . . . . . . . . . . . . . . . . . . 2 . . . . . . Hunter 12 | . . . 2 1 1 . . . . 1 . 1 . . . 2 . . . 2 . 2 . . . . . . Programmer 14 | . . . . . . . 1 . . . . . . . . . . 3 . 1 1 . . . . . 4 4 Behemoth 2 | . . . . . . . . . . . . 2 . . . . . . . . . . . . . . . . Cetus Guard 6 | . . . . . . . . . . . . . 6 . . . . . . . . . . . . . . . Enhanced Grunt 2 | . . . . . . . . . . . . . . . 2 . . . . . . . . . . . . . Combat Programmer 1 | . . . . . . . . . . . . . . . . . . . . . . . . . . . . 1 Z-Technician 1 | . . . . . . . . . 1 . . . . . . . . . . . . . . . . . . . Z-Light 11 | . . . . . . . . . 11 . . . . . . . . . . . . . . . . . . . Golem 1 | . . . . . . . . . 1 . . . . . . . . . . . . . . . . . . . Thug 3 | . . . . . . . 3 . . . . . . . . . . . . . . . . . . . . . Butcher 1 | . . . . . . . 1 . . . . . . . . . . . . . . . . . . . . . Mutant 1 | . . . . . . . 1 . . . . . . . . . . . . . . . . . . . . . Best Kill Streak 20 | 3 3 3 3 15 5 3 4 . 6 3 6 6 5 2 20 2 5 4 . 4 4 8 . 2 4 2 4 6 Combat Bots Only 15 | . 2 3 3 15 4 3 4 . 6 3 3 6 4 2 5 2 5 4 . 4 1 7 . . 4 1 1 6 Max Kills in Single Turn 8 | 1 1 1 2 2 2 2 1 . 1 1 3 2 2 1 8 2 2 2 . 3 1 4 . 1 2 1 2 2 Gunslinging 3 | . . . 1 1 . 1 . . . . 1 1 1 . 1 1 1 1 . 2 . 3 . . 1 . 1 1 Exploded 3 | . . . . 1 . . . . . . . . . . 3 . . . . . . . . . . . . 1 Melee . | . . . . . . . . . . . . . . . . . . . . . . . . . . . . . Uniques/NPCs Destroyed 2 | . . . . . . . . . 1 . . . 1 . . . . . . . . . . . . . . . Z-Imprinter (-7/Deep Caves) A7 (-6/Cetus) Combat | -11 -10 -9 -8 -8 -7 -7 -7 -7 -7 -6 -6 -6 -6 -6 -6 -5 -5 -5 -5 -4 -4 -4 -4 -3 -3 -2 -1 -1 -------- Run | Scr Mat Mat Mat Sto Fac Low Low Zio Dee Pro Fac Ext Cet Arc Hub Fac Upp Upp War Pro Fac Arm Lab Res Tes Res Acc Com Damage Taken 5649 | . 10 218 470 735 122 104 126 . 799 23 24 219 113 76 336 62 16 61 . 60 27 723 . 38 156 70 477 584 Core 3965 | . 7 142 310 473 90 67 81 . 602 18 11 144 85 53 242 43 12 48 . 42 21 531 . 29 106 54 308 446 Absorbed by Shields 624 | . . . . . 26 41 52 . 245 9 10 21 73 . . . . . . . . . . . . . 4 143 Redirected to Core 3313 | . 2 109 226 389 61 59 81 . 441 18 11 124 66 53 187 43 12 39 . 42 21 489 . 29 106 54 285 366 Regen/Repaired (Parts) 382 | . . . . . . . . . . . . . 39 15 44 5 . . . 7 . 114 . . 19 4 90 45 Core Remaining (%) 95 | 100 100 100 . 97 . . . . . 98 . . . . 75 . . . . 97 . . 96 . 90 100 . 99 Volleys Fired 682 | 11 9 43 47 90 29 10 15 . 50 7 25 38 25 3 20 7 12 9 . 14 5 62 3 3 25 12 47 61 Largest 4 | 2 2 2 2 2 3 3 3 . 3 3 3 4 4 4 4 4 4 4 . 4 4 4 1 4 4 4 4 4 Hottest 388 | 40 40 121 130 110 185 185 185 . 225 206 206 279 279 279 279 279 279 279 . 279 279 279 65 286 286 376 388 376 Shots Fired 1966 | 22 18 81 91 179 78 24 45 . 138 21 75 128 97 12 77 28 48 36 . 56 20 226 3 12 66 48 152 185 Gun 1949 | 22 18 81 91 179 78 24 45 . 138 21 75 128 97 12 77 28 48 36 . 56 20 226 3 12 66 48 149 171 Cannon 17 | . . . . . . . . . . . . . . . . . . . . . . . . . . . 3 14 Launcher . | . . . . . . . . . . . . . . . . . . . . . . . . . . . . . Special . | . . . . . . . . . . . . . . . . . . . . . . . . . . . . . Kinetic 40 | 22 18 . . . . . . . . . . . . . . . . . . . . . . . . . . . Thermal 1650 | . . 81 91 179 78 24 45 . 116 14 50 90 72 9 57 21 36 27 . 42 15 165 3 6 48 44 152 185 Explosive . | . . . . . . . . . . . . . . . . . . . . . . . . . . . . . Electromagnetic 7 | . . . . . . . . . . . . . . . . . . . . . . . . 3 4 . . . Phasic 269 | . . . . . . . . . 22 7 25 38 25 3 20 7 12 9 . 14 5 61 . 3 14 4 . . Robot Hit Streak 79 | 10 11 16 21 59 77 9 18 . 39 22 53 64 24 29 42 14 15 35 . 43 54 27 . 4 18 21 28 79 Robot Miss Streak 2 | 1 2 2 2 1 . 2 1 . 1 . 1 1 1 . 1 1 1 1 . . 1 2 . 1 1 1 1 2 Penetration Max . | . . . . . . . . . . . . . . . . . . . . . . . . . . . . . Secondary Targets 63 | . . 1 2 8 2 3 2 . 3 . 2 5 5 1 1 1 2 4 . 2 . 12 . . 1 . 2 4 Max Gunslinging Chain 3 | . . 1 1 1 1 1 1 . 1 . 1 1 2 1 1 1 1 1 . 2 . 3 . . 1 . 1 1 Shots Hit Robots 1399 | 16 13 71 77 153 65 17 36 . 101 19 36 100 71 12 44 16 29 31 . 38 16 136 . 4 35 41 81 141 Core Hits 587 | 7 6 24 30 70 32 7 15 . 47 7 16 33 28 4 35 8 13 11 . 15 6 63 . 3 20 8 34 45 Critical Kills 18 | . . . . . . . . . . . . . . . . . . . . . . . . . . 1 8 9 Critical Parts Destroyed 32 | . . . . . . . . . . . . . . . . . . . . . . . . . . 3 11 18 Critical Strikes 99 | . . 2 3 8 4 2 2 . 4 . 1 4 2 2 . . . . . 1 . 1 . . . 7 21 35 Burn 23 | . . 2 3 8 4 2 2 . 2 . . . . . . . . . . . . . . . . . . . Destroy 63 | . . . . . . . . . . . . . . . . . . . . . . . . . . 7 21 35 Intensify 13 | . . . . . . . . . 2 . 1 4 2 2 . . . . . 1 . 1 . . . . . . Melee Attacks 40 | . . . . . . . . 40 . . . . . . . . . . . . . . . . . . . . Impact 36 | . . . . . . . . 36 . . . . . . . . . . . . . . . . . . . . Slashing . | . . . . . . . . . . . . . . . . . . . . . . . . . . . . . Piercing 4 | . . . . . . . . 4 . . . . . . . . . . . . . . . . . . . . Sneak Attacks . | . . . . . . . . . . . . . . . . . . . . . . . . . . . . . Combat Hostiles . | . . . . . . . . . . . . . . . . . . . . . . . . . . . . . Follow-up Attacks . | . . . . . . . . . . . . . . . . . . . . . . . . . . . . . Damage Inflicted 50245 | 213 169 983 1213 3042 1324 333 728 . 2990 673 1507 3682 3030 509 4407 650 997 1150 . 1373 617 5539 . 144 1413 1695 3339 8525 Guns 43176 | 213 169 983 1213 3006 1324 333 728 . 2990 673 1263 3682 3030 509 1866 650 997 1150 . 1373 617 5539 . 144 1321 1695 3228 4480 Cannons 1951 | . . . . . . . . . . . . . . . . . . . . . . . . . . . . 1951 Explosions 5118 | . . . . 36 . . . . . . 244 . . . 2541 . . . . . . . . . 92 . 111 2094 Melee . | . . . . . . . . . . . . . . . . . . . . . . . . . . . . . Ramming . | . . . . . . . . . . . . . . . . . . . . . . . . . . . . . Kinetic 382 | 213 169 . . . . . . . . . . . . . . . . . . . . . . . . . . . Thermal 39511 | . . 983 1213 3006 1324 333 728 . 2429 442 946 2581 2250 392 1398 485 700 886 . 911 485 3814 . 46 828 1578 3228 8525 Explosive 147 | . . . . 36 . . . . . . . . . . . . . . . . . . . . . . 111 . Electromagnetic 2639 | . . . . . . . . . . . . . . . 2541 . . . . . . . . 20 78 . . . Impact . | . . . . . . . . . . . . . . . . . . . . . . . . . . . . . Slashing . | . . . . . . . . . . . . . . . . . . . . . . . . . . . . . Piercing . | . . . . . . . . . . . . . . . . . . . . . . . . . . . . . Phasic 7566 | . . . . . . . . . 561 231 561 1101 780 117 468 165 297 264 . 462 132 1725 . 78 507 117 . . Highest Corruption 4 | . . 1 2 2 . . . . . . . . . . 4 . . . . . . . . . . . . 2 Average Corruption 1 | . . 1 1 2 . . . . . . . . . . 3 . . . . . . . . . . . . 1 Corruption Purged . | . . . . . . . . . . . . . . . . . . . . . . . . . . . . . Corruption Blocked 30 | . . . . . . . . . . . . . . . . . . . . . . . . . . . 30 . Effects 25 | . . 6 4 10 . . . . . . . . . . 2 . . . . . . . . . . . . 3 Message Errors 10 | . . 3 2 4 . . . . . . . . . . . . . . . . . . . . . . . 1 Matter Fused 6 | . . . 2 3 . . . . . . . . . . . . . . . . . . . . . . . 1 Energy Discharges 1 | . . . . . . . . . . . . . . . 1 . . . . . . . . . . . . . Data Loss (minor) 4 | . . 2 . 2 . . . . . . . . . . . . . . . . . . . . . . . . Data Loss (major) 1 | . . . . . . . . . . . . . . . 1 . . . . . . . . . . . . . Misfires 2 | . . 1 . . . . . . . . . . . . . . . . . . . . . . . . . 1 Weapon Failures 1 | . . . . 1 . . . . . . . . . . . . . . . . . . . . . . . . Overload Shots . | . . . . . . . . . . . . . . . . . . . . . . . . . . . . . Overflow Damage 585 | . . . . . . . . . . . 26 . . . 238 . . . . . . . . . 68 . . 253 Projectiles 149 | . . . . . . . . . . . . . . . . . . . . . . . . . . . . 149 Explosions 436 | . . . . . . . . . . . 26 . . . 238 . . . . . . . . . 68 . . 104 Melee . | . . . . . . . . . . . . . . . . . . . . . . . . . . . . . Knockbacks . | . . . . . . . . . . . . . . . . . . . . . . . . . . . . . Impact . | . . . . . . . . . . . . . . . . . . . . . . . . . . . . . Kinetic . | . . . . . . . . . . . . . . . . . . . . . . . . . . . . . Secondary . | . . . . . . . . . . . . . . . . . . . . . . . . . . . . . Self-Inflicted Damage 298 | . . . . 42 . . . . . . . . . . 256 . . . . . . . . . . . . . Shots 5 | . . . . 1 . . . . . . . . . . 4 . . . . . . . . . . . . . Rammed . | . . . . . . . . . . . . . . . . . . . . . . . . . . . . . Targets Rammed . | . . . . . . . . . . . . . . . . . . . . . . . . . . . . . Kicked . | . . . . . . . . . . . . . . . . . . . . . . . . . . . . . Crushed . | . . . . . . . . . . . . . . . . . . . . . . . . . . . . . Highest Temperature 401 | . . 189 . . 7 . 5 . 157 168 166 217 304 105 108 72 72 72 . 120 120 204 . 84 287 356 159 401 Average Temperature 71 | . . 59 . . 7 . 5 . 40 77 49 60 108 54 42 29 39 39 . 61 58 63 . 46 98 118 66 112 Received Heat Transfer 1904 | . . 129 288 513 95 . 66 . 254 6 . 86 . 36 60 . . 18 . 9 . 105 . 21 46 . 81 91 Effects 8 | . . . . . . . . . . . . . 1 . . . . . . . . . . . 2 2 . 3 Energy Bleed 2 | . . . . . . . . . . . . . . . . . . . . . . . . . . . . 2 Interference 4 | . . . . . . . . . . . . . . . . . . . . . . . . . 2 2 . . Matter Decay 2 | . . . . . . . . . . . . . 1 . . . . . . . . . . . . . . 1 Siege Activations . | . . . . . . . . . . . . . . . . . . . . . . . . . . . . . Robots Corrupted 4 | . . . . . . . . . . . . . . . 4 . . . . . . . . . . . . . Combat Hostiles 2 | . . . . . . . . . . . . . . . 2 . . . . . . . . . . . . . Parts Fried 27 | . . . . . . . . . . . . 1 2 . 23 . . . . . . . . 1 . . . . Impact Corruptions . | . . . . . . . . . . . . . . . . . . . . . . . . . . . . . Robots Melted 2 | . . . . . . . 1 . . . . . . . 1 . . . . . . . . . . . . . Combat Hostiles 2 | . . . . . . . 1 . . . . . . . 1 . . . . . . . . . . . . . Parts Melted 66 | . . 3 2 14 6 1 5 . 4 1 1 4 4 . 1 . . . . . . 4 . . 2 2 6 6 Heat Transferred 43460 | . . 2427 3108 5984 2738 777 1480 . 2854 444 903 2479 1830 333 1184 481 703 851 . 888 444 3330 . 37 753 1406 2923 5103 Parts Sabotaged 7 | . . . . . . . . . . . . . . . . . . . . . . 7 . . . . . . Parts Stolen . | . . . . . . . . . . . . . . . . . . . . . . . . . . . . . Parts Stripped . | . . . . . . . . . . . . . . . . . . . . . . . . . . . . . Power Chain Reactions 1 | . . . . . . . . . . . . . . . . . . . . . . . . . 1 . . . Missiles Intercepted 11 | . . . . . . . . . . . . . . . . . . . . . . . . . . . . 11 Alert | -11 -10 -9 -8 -8 -7 -7 -7 -7 -7 -6 -6 -6 -6 -6 -6 -5 -5 -5 -5 -4 -4 -4 -4 -3 -3 -2 -1 -1 ------- Run | Scr Mat Mat Mat Sto Fac Low Low Zio Dee Pro Fac Ext Cet Arc Hub Fac Upp Upp War Pro Fac Arm Lab Res Tes Res Acc Com Peak Influence 2033 | 30 72 247 358 423 292 . . . . . 450 715 616 265 897 160 . . . . 164 777 . 65 604 356 1779 2033 Initial 1100 | . 14 21 13 60 . . . . . . 43 162 196 101 63 160 . . . . 110 58 . . 27 246 161 1100 Average 416 | 19 55 77 195 173 126 . . . . . 227 458 383 243 390 38 . . . . 88 472 . 29 235 267 1030 1653 Maximum Alert Level 5 | . . 1 1 2 1 . . . . . 2 3 2 1 3 . . . . . . 3 . . 2 1 5 5 Low Security (%) 43 | 100 100 92 50 64 89 . . . . . 41 15 2 14 41 100 . . . . 100 5 . 100 52 27 6 . Level 1 23 | . . 7 49 33 10 . . . . . 31 9 68 85 21 . . . . . . 28 . . 18 72 3 . Level 2 15 | . . . . 2 . . . . . . 27 66 29 . 9 . . . . . . 53 . . 29 . 9 . Level 3 4 | . . . . . . . . . . . . 8 . . 27 . . . . . . 12 . . . . 31 . Level 4 5 | . . . . . . . . . . . . . . . . . . . . . . . . . . . 37 30 Level 5 3 | . . . . . . . . . . . . . . . . . . . . . . . . . . . . 35 High Security 3 | . . . . . . . . . . . . . . . . . . . . . . . . . . . . 34 Max Security . | . . . . . . . . . . . . . . . . . . . . . . . . . . . 10 . Squads Dispatched 45 | . . 1 1 6 5 . . . . . . 1 . . 3 1 . 1 . . . 4 . . 5 . 6 11 Investigation 7 | . . . . 1 2 . . . . . . . . . . . . . . . . 2 . . . . 1 1 Extermination 2 | . . . . . . . . . . . . . . . . . . . . . . 1 . . . . . 1 Reinforcement 20 | . . 1 1 2 3 . . . . . . 1 . . 3 1 . . . . . 1 . . 3 . 4 . Assault 13 | . . . . 2 . . . . . . . . . . . . . 1 . . . . . . . . 1 9 Garrison 3 | . . . . 1 . . . . . . . . . . . . . . . . . . . . 2 . . . Intercept . | . . . . . . . . . . . . . . . . . . . . . . . . . . . . . Searches Triggered 2 | . . . . . . . . . . . . . . . . . . . . . . . . . . . 2 . Construction Impeded 3 | . . . . . . . . . . . . 1 . . 1 . . . . . . . . . 1 . . . Haulers Reinforced 4 | . . . . . 2 . . . . . . . . . . 1 . . . . . . . . . . 1 . Active Scanning Responses . | . . . . . . . . . . . . . . . . . . . . . . . . . . . . . Cargo Convoy Interrupts . | . . . . . . . . . . . . . . . . . . . . . . . . . . . . . Stealth | -11 -10 -9 -8 -8 -7 -7 -7 -7 -7 -6 -6 -6 -6 -6 -6 -5 -5 -5 -5 -4 -4 -4 -4 -3 -3 -2 -1 -1 --------- Run | Scr Mat Mat Mat Sto Fac Low Low Zio Dee Pro Fac Ext Cet Arc Hub Fac Upp Upp War Pro Fac Arm Lab Res Tes Res Acc Com Distress Signals 22 | . 1 4 . 3 1 . . . . . 1 1 1 . 2 . . . . . . 2 . . 1 1 3 1 Communications Jammed . | . . . . . . . . . . . . . . . . . . . . . . . . . . . . . Distress Signals . | . . . . . . . . . . . . . . . . . . . . . . . . . . . . . Times Spotted 543 | . 6 20 19 39 20 5 8 . 30 3 14 28 16 4 12 6 5 18 2 16 14 62 . 6 32 6 86 66 Peak Tracking Total 33 | . 2 5 4 13 4 3 5 . 33 2 4 7 4 4 11 5 5 8 2 7 11 9 . 3 12 2 16 24 Tactical Retreats 62 | . . 1 1 1 1 . . . 1 . 4 3 . . 3 1 . 2 1 3 . 10 . 1 6 1 20 2 Traps | -11 -10 -9 -8 -8 -7 -7 -7 -7 -7 -6 -6 -6 -6 -6 -6 -5 -5 -5 -5 -4 -4 -4 -4 -3 -3 -2 -1 -1 ------- Run | Scr Mat Mat Mat Sto Fac Low Low Zio Dee Pro Fac Ext Cet Arc Hub Fac Upp Upp War Pro Fac Arm Lab Res Tes Res Acc Com Traps Triggered 22 | . . 1 3 2 . . . . . . 3 . . . 1 . . . . . 2 5 . . . . 2 3 Indirectly 1 | . . . . . . . . . . . . . . . 1 . . . . . . . . . . . . . Trap Hack Attempts . | . . . . . . . . . . . . . . . . . . . . . . . . . . . . . Triggered . | . . . . . . . . . . . . . . . . . . . . . . . . . . . . . Disarmed 24 | . . . . . . . . . . . . 1 . . . . . . . . 6 5 . . . . . 12 Reprogrammed 10 | . . . . . . . . . . . . 5 . . . . . . . . . 1 . . 4 . . . Reused 1 | . . . . . . . . . . . . . . . . . . . . . . . . . 1 . . . Traps Extracted . | . . . . . . . . . . . . . . . . . . . . . . . . . . . . . Installed . | . . . . . . . . . . . . . . . . . . . . . . . . . . . . . Triggered 4 | . . . . . . . . . . . . . . . . . . . 3 . . . . . 1 . . . Machines | -11 -10 -9 -8 -8 -7 -7 -7 -7 -7 -6 -6 -6 -6 -6 -6 -5 -5 -5 -5 -4 -4 -4 -4 -3 -3 -2 -1 -1 ---------- Run | Scr Mat Mat Mat Sto Fac Low Low Zio Dee Pro Fac Ext Cet Arc Hub Fac Upp Upp War Pro Fac Arm Lab Res Tes Res Acc Com Machines Disabled 105 | . . . . 3 . . . 3 4 . 16 2 4 . 33 . . . . . . 8 1 . 12 . 11 8 Max in Single Turn 15 | . . . . 2 . . . 1 1 . 15 1 1 . 10 . . . . . . 1 1 . 1 . 2 2 Garrison Access 10 | . . . 1 1 2 . . . . . . . . . 1 . . . . . . . . . . . 5 . Phase Generator 1 | . . . . . . . . . . . . . . . . . . . . . . . . . . . . 1 Network Hub 4 | . . . . . . . . . . . . . . . 4 . . . . . . . . . . . . . Machines Sabotaged . | . . . . . . . . . . . . . . . . . . . . . . . . . . . . . Garrisons Compromised . | . . . . . . . . . . . . . . . . . . . . . . . . . . . . . Overloaded Fab Kills . | . . . . . . . . . . . . . . . . . . . . . . . . . . . . . Hacking | -11 -10 -9 -8 -8 -7 -7 -7 -7 -7 -6 -6 -6 -6 -6 -6 -5 -5 -5 -5 -4 -4 -4 -4 -3 -3 -2 -1 -1 --------- Run | Scr Mat Mat Mat Sto Fac Low Low Zio Dee Pro Fac Ext Cet Arc Hub Fac Upp Upp War Pro Fac Arm Lab Res Tes Res Acc Com Machines Accessed 118 | . 1 2 1 13 8 . . . . . 6 12 2 1 6 4 . . 9 . 2 11 2 5 10 4 13 6 Terminals 88 | . 1 2 . 12 5 . . . . . 5 12 2 . 5 4 . . . . 2 6 . 5 10 3 8 6 Fabricators 9 | . . . . . 1 . . . . . 1 . . . . . . . . . . 5 . . . 1 1 . Repair Stations . | . . . . . . . . . . . . . . . . . . . . . . . . . . . . . Recycling Units . | . . . . . . . . . . . . . . . . . . . . . . . . . . . . . Scanalyzers . | . . . . . . . . . . . . . . . . . . . . . . . . . . . . . Garrison Access 9 | . . . 1 1 2 . . . . . . . . . 1 . . . . . . . . . . . 4 . Total Hacks 459 | . 3 10 1 31 18 . . . . . 14 29 2 3 24 30 . . 15 . 19 60 21 31 58 11 48 31 Successful 236 | . 1 5 1 20 8 . . . . . 8 17 2 3 9 12 . . 15 . 12 24 21 13 28 5 21 11 Failed 223 | . 2 5 . 11 10 . . . . . 6 12 . . 15 18 . . . . 7 36 . 18 30 6 27 20 Catastrophic 35 | . . . . 1 2 . . . . . 1 2 . . 3 2 . . . . 2 4 . 4 2 1 6 5 Database Lockouts . | . . . . . . . . . . . . . . . . . . . . . . . . . . . . . Manual 260 | . 3 3 . 16 15 . . 1 . . 9 19 1 . 23 25 . . . . 12 36 . 20 33 8 21 15 Terminals 392 | . 3 10 . 29 14 . . . . . 12 29 2 . 23 30 . . . . 19 52 . 31 58 10 39 31 Fabricators 14 | . . . . . 1 . . . . . 2 . . . . . . . . . . 8 . . . 1 2 . Repair Stations . | . . . . . . . . . . . . . . . . . . . . . . . . . . . . . Recycling Units . | . . . . . . . . . . . . . . . . . . . . . . . . . . . . . Scanalyzers . | . . . . . . . . . . . . . . . . . . . . . . . . . . . . . Garrison Access 14 | . . . 1 2 3 . . . . . . . . . 1 . . . . . . . . . . . 7 . Terminal Hacks 145 | . 1 3 . 13 2 . . . . . 3 7 2 3 5 8 . . 15 . 9 10 21 8 17 3 9 6 Record 38 | . . . . . . . . . . . . . 1 3 . . . . 13 . . . 21 . . . . . Part Schematic 4 | . . . . . . . . . . . . . . . . . . . . . 1 1 . 1 1 . . . Robot Analysis 1 | . . . . . . . . . . . . . . . . . . . . . . . . . . . . 1 Prototype ID Bank 5 | . . . . 1 . . . . . . . . . . . 1 . . . . 1 . . 1 . 1 . . Open Door 12 | . . . . 5 . . . . . . . 3 1 . . . . . 2 . . . . . 1 . . . Level Access Points 1 | . . . . . . . . . . . . . . . . . . . . . . . . . . 1 . . Branch Access Points 6 | . . . . . 1 . . . . . 1 . . . . 1 . . . . 1 . . 1 . . 1 . Emergency Access Points 2 | . . . . . . . . . . . . . . . . 1 . . . . . . . . 1 . . . Machine Index 2 | . . . . . . . . . . . . . . . . . . . . . . . . 1 . . 1 . Terminal Index 1 | . . . . . . . . . . . . . . . . . . . . . . . . . 1 . . . Scanalyzer Index 1 | . . . . . . . . . . . . . . . . . . . . . 1 . . . . . . . Garrison Index 1 | . . . . . . . . . . . . . . . . . . . . . . . . . . . . 1 Alert Level 2 | . . . . . . . . . . . . . . . . 1 . . . . . . . 1 . . . . Unreport Threat 39 | . 1 3 . 5 1 . . . . . 2 1 . . 5 4 . . . . 2 4 . 1 6 1 3 . Locate Traps 3 | . . . . 1 . . . . . . . . . . . . . . . . . . . . 2 . . . Disarm Traps 8 | . . . . . . . . . . . . 2 . . . . . . . . 2 2 . . . . . 2 Reprogram Traps 5 | . . . . . . . . . . . . 1 . . . . . . . . . 2 . . 2 . . . Surveillance Status 1 | . . . . . . . . . . . . . . . . . . . . . . . . . 1 . . . Extermination Status 1 | . . . . . . . . . . . . . . . . . . . . . . . . . . . 1 . Assault Status 1 | . . . . . . . . . . . . . . . . . . . . . . . . . . . 1 . Recall Reinforcements 2 | . . . . 1 . . . . . . . . . . . . . . . . . 1 . . . . . . Registered Prototypes 4 | . . . . . . . . . . . . . . . . . . . . . 1 . . 1 1 . 1 . Zone Layout 4 | . . . . . . . . . . . . . . . . . . . . . . . . 1 1 . 1 1 Disengage Seal 1 | . . . . . . . . . . . . . . . . . . . . . . . . . . . . 1 Fabricator Hacks 1 | . . . . . . . . . . . . . . . . . . . . . . 1 . . . . . . Build 1 | . . . . . . . . . . . . . . . . . . . . . . 1 . . . . . . Repair Station Hacks . | . . . . . . . . . . . . . . . . . . . . . . . . . . . . . Recycling Unit Hacks . | . . . . . . . . . . . . . . . . . . . . . . . . . . . . . Scanalyzer . | . . . . . . . . . . . . . . . . . . . . . . . . . . . . . Garrison Access Hacks 9 | . . . 1 1 2 . . . . . . . . . 1 . . . . . . . . . . . 4 . Seal Access 9 | . . . 1 1 2 . . . . . . . . . 1 . . . . . . . . . . . 4 . Unauthorized Hacks 81 | . . 2 . 6 4 . . . . . 5 10 . . 3 4 . . . . 3 13 . 5 11 2 8 5 Terminals 72 | . . 2 . 6 3 . . . . . 4 10 . . 3 4 . . . . 3 8 . 5 11 1 7 5 Track 1 | . . . . . . . . . . . . . . . . . . . . . . 1 . . . . . . Assimilate 5 | . . . . . . . . . . . 1 1 . . . . . . . . . . . . 3 . . . Botnet 62 | . . 2 . 5 3 . . . . . 3 8 . . 3 4 . . . . 2 6 . 5 8 1 7 5 Disrupt 3 | . . . . 1 . . . . . . . 1 . . . . . . . . . 1 . . . . . . Operators 1 | . . . . . . . . . . . . . . . . . . . . . 1 . . . . . . . Fabricators 9 | . . . . . 1 . . . . . 1 . . . . . . . . . . 5 . . . 1 1 . Liberate 9 | . . . . . 1 . . . . . 1 . . . . . . . . . . 5 . . . 1 1 . Repair Stations . | . . . . . . . . . . . . . . . . . . . . . . . . . . . . . Recycling Units . | . . . . . . . . . . . . . . . . . . . . . . . . . . . . . Scanalyzers . | . . . . . . . . . . . . . . . . . . . . . . . . . . . . . Garrison Access . | . . . . . . . . . . . . . . . . . . . . . . . . . . . . . Data Cores Recovered 8 | . . . . . . . . . . . . 1 . . 1 . . . . . 1 . . 1 1 1 1 1 Used 5 | . . . . . . . . . . . . 1 . . . . . . . . 1 . . 1 . 1 . 1 Hacking Detections 79 | . 1 2 . 8 7 . . . . . 6 8 1 . 5 3 . . . . 2 7 . 5 7 3 9 5 Full Trace Events 5 | . . . . 1 1 . . . . . . . . . . . . . . . . 1 . . . . 1 1 Feedback Events 1 | . . . . . . . . . . . . . . . . . . . . . . . . . . . . 1 Corruption 1 | . . . . . . . . . . . . . . . . . . . . . . . . . . . . 1 Feedback Blocked . | . . . . . . . . . . . . . . . . . . . . . . . . . . . . . Robot Schematics Acquired . | . . . . . . . . . . . . . . . . . . . . . . . . . . . . . Robots Built 2 | . . . . . . . . . . . . . . . . . . . . . . 2 . . . . . . Authchips . | . . . . . . . . . . . . . . . . . . . . . . . . . . . . . Time 169 | . . . . . . . . . . . . . . . . . . . . . . 169 . . . . . . Total Robot Build Rating 12 | . . . . . . . . . . . . . . . . . . . . . . 12 . . . . . . Part Schematics Acquired 13 | . . . . . . . . . . . . . . . . . . . . . 1 1 . 1 10 . . . Parts Built . | . . . . . . . . . . . . . . . . . . . . . . . . . . . . . Authchips . | . . . . . . . . . . . . . . . . . . . . . . . . . . . . . Time . | . . . . . . . . . . . . . . . . . . . . . . . . . . . . . Total Part Build Rating . | . . . . . . . . . . . . . . . . . . . . . . . . . . . . . Parts Repaired . | . . . . . . . . . . . . . . . . . . . . . . . . . . . . . Time . | . . . . . . . . . . . . . . . . . . . . . . . . . . . . . Parts Recycled . | . . . . . . . . . . . . . . . . . . . . . . . . . . . . . Recycled Matter . | . . . . . . . . . . . . . . . . . . . . . . . . . . . . . Retrieved Matter . | . . . . . . . . . . . . . . . . . . . . . . . . . . . . . Retrieved Components . | . . . . . . . . . . . . . . . . . . . . . . . . . . . . . Parts Scanalyzed . | . . . . . . . . . . . . . . . . . . . . . . . . . . . . . Part Schematics Acquired . | . . . . . . . . . . . . . . . . . . . . . . . . . . . . . Parts Damaged . | . . . . . . . . . . . . . . . . . . . . . . . . . . . . . Bothacking | -11 -10 -9 -8 -8 -7 -7 -7 -7 -7 -6 -6 -6 -6 -6 -6 -5 -5 -5 -5 -4 -4 -4 -4 -3 -3 -2 -1 -1 ------------ Run | Scr Mat Mat Mat Sto Fac Low Low Zio Dee Pro Fac Ext Cet Arc Hub Fac Upp Upp War Pro Fac Arm Lab Res Tes Res Acc Com Used RIF Installer . | . . . . . . . . . . . . . . . . . . . . . . . . . . . . . Robots Hacked . | . . . . . . . . . . . . . . . . . . . . . . . . . . . . . Non-combat . | . . . . . . . . . . . . . . . . . . . . . . . . . . . . . Combat . | . . . . . . . . . . . . . . . . . . . . . . . . . . . . . Robot Hacks Applied . | . . . . . . . . . . . . . . . . . . . . . . . . . . . . . Relay Couplers Released 1 | . . . . . . . . . . . . . . . . . . . . . . . . . . . 1 . Machine Destruction 1 | . . . . . . . . . . . . . . . . . . . . . . . . . . . 1 . Fabnet Peak Effective % . | . . . . . . . . . . . . . . . . . . . . . . . . . . . . . Robots Rewired 12 | . . . . . . . 2 . . . . . . . . . . . . . . 8 . . 2 . . . Allies Hacked . | . . . . . . . . . . . . . . . . . . . . . . . . . . . . . Hacks Repelled . | . . . . . . . . . . . . . . . . . . . . . . . . . . . . . Allies | -11 -10 -9 -8 -8 -7 -7 -7 -7 -7 -6 -6 -6 -6 -6 -6 -5 -5 -5 -5 -4 -4 -4 -4 -3 -3 -2 -1 -1 -------- Run | Scr Mat Mat Mat Sto Fac Low Low Zio Dee Pro Fac Ext Cet Arc Hub Fac Upp Upp War Pro Fac Arm Lab Res Tes Res Acc Com Total Allies 46 | . . . . 15 . . 2 . . . 7 4 5 . . . . . . . . 10 . . 3 . . . Largest Group 13 | . . . . 13 12 4 4 3 3 . 4 4 9 6 6 . . . . . . 4 . . 2 1 1 . Highest-Rated Group 726 | . . . . 266 250 92 92 76 76 . 100 246 726 504 504 . . . . . . 224 . . 289 157 157 . Highest-Rated Ally 162 | . . . . 31 31 31 31 31 31 . 31 159 159 96 96 . . . . . . 68 . . 162 157 157 . Total Orders 2 | . . . . . . . . . 1 . . . . . . . . . . . . . . . 1 . . . GUARD 1 | . . . . . . . . . 1 . . . . . . . . . . . . . . . . . . . AID 1 | . . . . . . . . . . . . . . . . . . . . . . . . . 1 . . . Ally Attacks 317 | . . . . 28 67 . 8 . 17 . 5 19 51 11 19 . . . . . . 50 . . 21 6 15 . Total Damage 9559 | . . . . 364 1100 . 117 . 472 . 175 815 1347 387 640 . . . . . . 1567 . . 1107 553 915 . Kills 57 | . . . . 3 11 . . . 4 . . 7 5 2 3 . . . . . . 7 . . 7 1 7 . Allies Corrupted 5 | . . . . . . . . . . . . . . . 5 . . . . . . . . . . . . . Allies Melted 1 | . . . . . . . . . . . . . . . . . . . . . . 1 . . . . . . Intel | -11 -10 -9 -8 -8 -7 -7 -7 -7 -7 -6 -6 -6 -6 -6 -6 -5 -5 -5 -5 -4 -4 -4 -4 -3 -3 -2 -1 -1 ------- Run | Scr Mat Mat Mat Sto Fac Low Low Zio Dee Pro Fac Ext Cet Arc Hub Fac Upp Upp War Pro Fac Arm Lab Res Tes Res Acc Com Robot Analysis Total 1 | . . . . . . . . . . . . . . . . . . . . . . . . . . . . 1 Derelict Logs Recovered 1 | . . . . . . . . . . 1 . . . . . . . . . . . . . . . . . . Drone Launches . | . . . . . . . . . . . . . . . . . . . . . . . . . . . . . Drone Recoveries . | . . . . . . . . . . . . . . . . . . . . . . . . . . . . . Exploration | -11 -10 -9 -8 -8 -7 -7 -7 -7 -7 -6 -6 -6 -6 -6 -6 -5 -5 -5 -5 -4 -4 -4 -4 -3 -3 -2 -1 -1 ------------- Run | Scr Mat Mat Mat Sto Fac Low Low Zio Dee Pro Fac Ext Cet Arc Hub Fac Upp Upp War Pro Fac Arm Lab Res Tes Res Acc Com Turns Passed 10517 | 189 288 513 602 815 468 165 304 420 1133 76 329 538 548 69 176 171 153 108 169 196 125 721 78 203 349 274 618 719 Spaces Moved 18697 | 131 211 295 410 804 738 208 349 905 1223 223 1008 1072 398 107 441 524 482 327 728 637 423 1645 187 637 769 383 1947 1485 Core 20 | 18 . . . . . . . . . . . . . . . . . . . . . 2 . . . . . . Treads . | . . . . . . . . . . . . . . . . . . . . . . . . . . . . . Legs 949 | 113 211 295 330 . . . . . . . . . . . . . . . . . . . . . . . . . Wheels . | . . . . . . . . . . . . . . . . . . . . . . . . . . . . . Hover 17724 | . . . 80 804 738 208 349 905 1223 223 1008 1072 398 107 441 524 482 327 728 637 423 1639 187 637 769 383 1947 1485 Flight 4 | . . . . . . . . . . . . . . . . . . . . . . 4 . . . . . . Fastest Speed 20 | 50 120 120 45 34 34 34 34 34 21 22 22 22 22 22 22 21 22 22 22 22 20 20 20 20 20 20 20 20 Average Speed 29 | 110 120 120 105 41 34 34 34 34 38 22 22 22 22 22 22 21 22 22 22 22 21 21 21 20 20 20 20 20 Slowest Speed 215 | 120 120 120 120 45 34 34 34 34 52 22 24 22 22 22 22 22 22 22 22 22 22 215 92 20 88 36 20 97 Overloaded Moves . | . . . . . . . . . . . . . . . . . . . . . . . . . . . . . Propulsion Burnouts . | . . . . . . . . . . . . . . . . . . . . . . . . . . . . . Robots Hopped . | . . . . . . . . . . . . . . . . . . . . . . . . . . . . . Cave-ins Triggered . | . . . . . . . . . . . . . . . . . . . . . . . . . . . . . Teleports 1 | . . . . . . . . . . . . . . . . . . . . . . . 1 . . . . . Exploration Rate (%) 57 | 3 38 27 43 92 31 44 54 85 87 43 32 98 78 86 68 19 65 57 93 84 15 89 96 17 84 12 54 60 Regions Visited 28 Branch Regions 18 Pre-discovered Areas 3 | . . . . . . . . 3 . . . . . . . . . . . . . . . . . . . . Known Exits Taken 28 | 1 1 1 1 1 1 1 1 1 1 1 1 1 1 1 1 1 1 1 1 1 1 1 1 1 1 1 1 . Unknown Exits Taken . | . . . . . . . . . . . . . . . . . . . . . . . . . . . . . Scrap Searched 14 | . . . . . . 1 3 5 . . . . . . . . 1 3 . 1 . . . . . . . . Spaces Dug 223 | . . . . . . . . . . . 9 . . . 159 5 4 . . . . 12 . 3 1 . 28 2 Terrain Destroyed 1090 | . . . . 15 . . . . 21 . 72 17 5 . 652 7 14 3 . 17 1 48 . 5 15 6 89 103 Melee . | . . . . . . . . . . . . . . . . . . . . . . . . . . . . . Projectile 229 | . . . . . . . . . 10 . 25 17 5 . 14 7 14 3 . 17 1 48 . 5 11 6 37 9 AOE 861 | . . . . 15 . . . . 11 . 47 . . . 638 . . . . . . . . . 4 . 52 94 Terrain Rammed . | . . . . . . . . . . . . . . . . . . . . . . . . . . . . . Walls Destroyed . | . . . . . . . . . . . . . . . . . . . . . . . . . . . . . Machines Disabled . | . . . . . . . . . . . . . . . . . . . . . . . . . . . . . Actions | -11 -10 -9 -8 -8 -7 -7 -7 -7 -7 -6 -6 -6 -6 -6 -6 -5 -5 -5 -5 -4 -4 -4 -4 -3 -3 -2 -1 -1 --------- Run | Scr Mat Mat Mat Sto Fac Low Low Zio Dee Pro Fac Ext Cet Arc Hub Fac Upp Upp War Pro Fac Arm Lab Res Tes Res Acc Com Total 22109 | 149 228 376 490 1106 893 282 503 976 1782 233 1059 1287 798 144 471 563 499 339 735 657 443 1863 222 704 915 549 2072 1771 Wait 1803 | . . 4 6 128 95 60 116 14 398 . 7 148 358 25 3 1 2 . . 5 . 27 5 50 55 113 33 150 Move 18664 | 130 210 294 409 803 737 207 348 904 1222 222 1007 1070 397 106 440 523 481 326 727 636 422 1644 186 636 768 382 1944 1483 Hop . | . . . . . . . . . . . . . . . . . . . . . . . . . . . . . Pick Up 59 | . 1 5 2 5 3 . 2 3 10 1 2 4 . . 1 2 1 . 1 . 1 1 1 1 2 1 3 6 Fast Attach 165 | 8 . 4 3 10 6 . 2 3 21 . 2 2 3 . 1 5 . 1 2 . 1 37 7 7 13 14 2 11 Attach 40 | . . 1 . 3 3 . . 1 2 1 2 1 1 . 1 . . . . . . 2 1 . 4 1 3 13 Detach 47 | . . 2 3 5 3 . . 2 5 . 2 1 3 . 1 1 . . . . . 2 3 1 4 2 . 7 Swap 25 | . 3 . . 4 . . . 4 1 . 1 . 1 . . 1 . . 2 . . 2 . . . . 4 2 Drop 174 | . 3 7 4 13 5 . 5 5 31 . 3 5 4 . 1 7 1 . 3 . 1 23 5 6 14 13 5 10 Fire 682 | 11 9 43 47 90 29 10 15 . 50 7 25 38 25 3 20 7 12 9 . 14 5 62 3 3 25 12 47 61 Melee 40 | . . . . . . . . 40 . . . . . . . . . . . . . . . . . . . . Ram . | . . . . . . . . . . . . . . . . . . . . . . . . . . . . . Kick . | . . . . . . . . . . . . . . . . . . . . . . . . . . . . . Crush . | . . . . . . . . . . . . . . . . . . . . . . . . . . . . . Escape Stasis 39 | . . . . 4 . . . . . . 4 1 . . . . . . . . 10 5 . . . . 14 1 Rewire 53 | . . . . . . . 6 . . . . . . . . . . . . . . 24 . . 23 . . . Trap . | . . . . . . . . . . . . . . . . . . . . . . . . . . . . . Miscellaneous 318 | . 2 16 16 41 12 5 9 . 42 2 4 17 6 10 3 16 2 3 . 2 3 34 11 . 7 11 17 27 Route ------- -11/Scrapyard -10/Materials (discovered 3 exits: *Mat / *Min x2) -9/Materials -8/Materials (discovered 2 exits: *Fac / *Sto) -8/Storage (discovered 2 exits: *Fac / Rec) -7/Factory (discovered 3 exits: *Fac / *Low x2) -7/Lower Caves -7/Lower Caves -7/Zion (discovered 2 exits: *Dee / *Pro) -7/Deep Caves -6/Proximity Caves -6/Factory (discovered 6 exits: *Fac x2 / Low x2 / *Ext x2) -6/Extension (discovered 3 exits: *Fac x2 / *Cet) -6/Cetus (discovered 2 exits: *Fac / *Arc) -6/Archives (discovered 3 exits: *Fac / *Hub x2) -6/Hub_04(d) (discovered 3 exits: *Fac x3) -5/Factory (discovered 2 exits: *Upp x2) -5/Upper Caves -5/Upper Caves (discovered 2 exits: *Fac / *War) -5/Warlord -4/Proximity Caves -4/Factory (discovered 3 exits: *Upp x2 / *Arm) -4/Armory (discovered 3 exits: Res x2 / *Lab) -4/Lab -3/Research (discovered 2 exits: *Tes x2) -3/Testing -2/Research (discovered 3 exits: *Acc x3) -1/Access (discovered 2 exits: Sur / *Com) -1/Command To Epsilon Eridani History --------- Turn | Location | Event 7 | -11/Scrapyard | Upgraded with Propulsion slot (x1) 7 | -11/Scrapyard | Upgraded with Utility slot (x2) 7 | -11/Scrapyard | Upgraded with Weapon slot (x1) 7 | -11/Scrapyard | Identified exit to Materials 7 | -11/Scrapyard | Discovered exit to Materials (range 15) 190 | -11/Scrapyard | Entered Materials 201 | -10/Materials | Identified exit to Mines 201 | -10/Materials | Discovered exit to Mines (range 13) 305 | -10/Materials | Build established: Hacker-Skirmisher 325 | -10/Materials | Discovered exit to Mines (range 17) 410 | -10/Materials | Identified exit to Materials 410 | -10/Materials | Discovered exit to Materials (range 16) 478 | -10/Materials | Entered another Materials area 480 | -9/Materials | Reached level 2 480 | -9/Materials | Reached level 3 495 | -9/Materials | Upgraded with Utility slot (x1) 784 | -9/Materials | Reached level 4 790 | -9/Materials | Upgraded with Propulsion slot (x1) 840 | -9/Materials | Identified exit to Materials 840 | -9/Materials | Discovered exit to Materials (range 15) 991 | -9/Materials | Entered another Materials area 991 | -8/Materials | Identified exit to Storage 991 | -8/Materials | Discovered exit to Storage (range 14) 993 | -8/Materials | Reached level 5 993 | -8/Materials | Reached level 6 996 | -8/Materials | Upgraded with Power slot (x1) 996 | -8/Materials | Upgraded with Propulsion slot (x1) 1011 | -8/Materials | Reached level 7 1329 | -8/Materials | Identified exit to Factory 1329 | -8/Materials | Discovered exit to Factory (range 17) 1478 | -8/Materials | Reached level 8 1493 | -8/Materials | Upgraded with Propulsion slot (x1) 1593 | -8/Materials | Entered Storage 1655 | -8/Storage | Garrison activated, responded to threat 1689 | -8/Storage | Reached level 9 1745 | -8/Storage | Upgraded with Utility slot (x1) 1774 | -8/Storage | Met a pair of Derelict thieves 1856 | -8/Storage | Build established: Hacker-Scout 1898 | -8/Storage | Reached level 10 1994 | -8/Storage | Destroyed 15 combat bots 2003 | -8/Storage | Assisted by bots powering up and referring to "LRC-V3" 2027 | -8/Storage | Reached level 11 2050 | -8/Storage | Discovered exit to Factory (range 18) 2093 | -8/Storage | Allied Derelicts emerged from ambush trap array 2129 | -8/Storage | Found Prototype Processor 2129 | -8/Storage | Identified Exp. Targeting Computer 2238 | -8/Storage | Identified exit to Recycling 2238 | -8/Storage | Discovered exit to Recycling (range 8) 2307 | -8/Storage | Build established: Commander-Scout 2408 | -8/Storage | Entered Factory 2408 | -7/Factory | Accompanied by 12 allies 2410 | -7/Factory | Reached level 12 2431 | -7/Factory | Upgraded with Utility slot (x1) 2468 | -7/Factory | Identified exit to Factory 2468 | -7/Factory | Discovered exit to Factory (range 9) 2490 | -7/Factory | Reached level 13 2566 | -7/Factory | Upgraded with Utility slot (x1) 2579 | -7/Factory | Upgraded with Weapon slot (x1) 2716 | -7/Factory | Identified exit to Lower Caves 2805 | -7/Factory | Reached level 14 2876 | -7/Factory | Entered Lower Caves 2876 | -7/Lower Caves | Accompanied by 4 allies 2910 | -7/Lower Caves | Encountered a Warlord checkpoint 2952 | -7/Lower Caves | Identified exit to Lower Caves 2952 | -7/Lower Caves | Discovered exit to Lower Caves (range 13) 2991 | -7/Lower Caves | Build established: Hacker-Scout 3041 | -7/Lower Caves | Entered another Lower Caves area 3041 | -7/Lower Caves | Accompanied by 4 allies 3043 | -7/Lower Caves | Reached level 15 3175 | -7/Lower Caves | Attacked by a faux Warlord 3299 | -7/Lower Caves | Identified exit to Zion 3299 | -7/Lower Caves | Discovered exit to Zion (range 13) 3345 | -7/Lower Caves | Entered Zion 3345 | -7/Zion | Accompanied by 3 allies 3368 | -7/Zion | Found Prototype Device 3368 | -7/Zion | Identified Mobile Refinery Mk. CCLXVII 3369 | -7/Zion | Identified exit to Proximity Caves 3369 | -7/Zion | Discovered exit to Proximity Caves (range 14) 3441 | -7/Zion | Received a visual enhancement algorithm 3462 | -7/Zion | Given the Hacking Drone Bay 3463 | -7/Zion | Found Prototype Device 3491 | -7/Zion | Learned Factory emergency access door positions 3544 | -7/Zion | Identified Hacking Drone Bay 3636 | -7/Zion | Identified exit to Deep Caves 3636 | -7/Zion | Discovered exit to Deep Caves (range 12) 3747 | -7/Zion | Saw the warning signs outside the Deep Caves entrance 3765 | -7/Zion | Entered Deep Caves 3765 | -7/Deep Caves | Accompanied by 3 allies 3779 | -7/Deep Caves | Found Surveybot 24 Chip 3780 | -7/Deep Caves | Found Surveybot 24 Scanner 4097 | -7/Deep Caves | Z-Facility disabled 4158 | -7/Deep Caves | Attacked by Z-Imprinter 4185 | -7/Deep Caves | Destroyed Z-Imprinter 4228 | -7/Deep Caves | Found Prototype Protection 4228 | -7/Deep Caves | Identified Zio. Weapon Casing 4233 | -7/Deep Caves | Found Prototype Device 4233 | -7/Deep Caves | Identified Zio. Metafield Generator 4506 | -7/Deep Caves | Build established: Scavenger-Scout 4611 | -7/Deep Caves | Identified exit to Proximity Caves 4611 | -7/Deep Caves | Discovered exit to Proximity Caves (range 23) 4770 | -7/Deep Caves | Spotted as-72203 4816 | -7/Deep Caves | Destroyed as-72203 4872 | -7/Deep Caves | Exposed GOLEM chamber 4880 | -7/Deep Caves | Triggered Deep Caves wall 4880 | -7/Deep Caves | Reached level 16 4882 | -7/Deep Caves | Found GOLEM Unit 4898 | -7/Deep Caves | Entered Proximity Caves 4899 | -6/Proximity Caves | Upgraded with Power slot (x1) 4940 | -6/Proximity Caves | Learned Factory terminal intel 4958 | -6/Proximity Caves | Discovered exit to Factory (range 3) 4965 | -6/Proximity Caves | Reached level 17 4974 | -6/Proximity Caves | Entered Factory 4976 | -6/Factory | Loaded intel: 28 terminal locations 4984 | -6/Factory | Allied Derelicts emerged from ambush trap array 5075 | -6/Factory | Identified exit to Factory 5075 | -6/Factory | Discovered exit to Factory (range 17) 5126 | -6/Factory | Spotted B-75 Beast 5144 | -6/Factory | Reached level 18 5189 | -6/Factory | Discovered exit to Factory (range 4) 5203 | -6/Factory | Identified exit to Lower Caves 5203 | -6/Factory | Identified exit to Extension 5303 | -6/Factory | Entered Extension 5311 | -6/Extension | Disrupted transfer network 5404 | -6/Extension | Rescued A7 5455 | -6/Extension | Reached level 19 5456 | -6/Extension | Upgraded with Weapon slot (x1) 5457 | -6/Extension | Spotted B-75 Beast 5458 | -6/Extension | Spotted B-75 Beast 5473 | -6/Extension | Destroyed B-75 Beast 5478 | -6/Extension | Destroyed B-75 Beast 5566 | -6/Extension | Rescued a captive Derelict 5567 | -6/Extension | Rescued a captive Derelict 5580 | -6/Extension | Rescued a captive Derelict 5594 | -6/Extension | Discovered exit to Factory (range 10) 5594 | -6/Extension | Identified exit to Cetus 5594 | -6/Extension | Discovered exit to Cetus (range 6) 5659 | -6/Extension | Discovered exit to Factory (range 13) 5841 | -6/Extension | Entered Cetus 5841 | -6/Cetus | Accompanied by 4 allies (A7) 5846 | -6/Cetus | Acquired a Cetus Manufacturing Module code from A7 5856 | -6/Cetus | Spotted Cetus Guard 5856 | -6/Cetus | Spotted Cetus Guard 5856 | -6/Cetus | Spotted Cetus Guard 5856 | -6/Cetus | Spotted Cetus Guard 5860 | -6/Cetus | Destroyed Cetus Guard 5863 | -6/Cetus | Destroyed Cetus Guard 5870 | -6/Cetus | Destroyed Cetus Guard 5870 | -6/Cetus | Destroyed Cetus Guard 5901 | -6/Cetus | Started Cetus Manufacturing Module 5926 | -6/Cetus | Manufactured an Enhanced Grunt 5951 | -6/Cetus | Manufactured an Enhanced Grunt 5976 | -6/Cetus | Manufactured an Enhanced Grunt 6001 | -6/Cetus | Manufactured an Enhanced Grunt 6026 | -6/Cetus | Manufactured an Enhanced Grunt 6081 | -6/Cetus | Cetus Manufacturing Module disabled 6111 | -6/Cetus | Escorted A7 to Cetus Mainframe 6137 | -6/Cetus | Found a strange terminal 6141 | -6/Cetus | Identified exit to Archives 6141 | -6/Cetus | Discovered exit to Archives (range 17) 6179 | -6/Cetus | Spotted Cetus Guard 6179 | -6/Cetus | Spotted Cetus Guard 6182 | -6/Cetus | Destroyed Cetus Guard 6182 | -6/Cetus | Spotted Cetus Guard 6191 | -6/Cetus | Spotted Cetus Guard 6192 | -6/Cetus | Destroyed Cetus Guard 6196 | -6/Cetus | Discovered exit to Factory (range 18) 6206 | -6/Cetus | Allies destroyed Cetus Guard 6207 | -6/Cetus | Allies destroyed Cetus Guard 6211 | -6/Cetus | Met Revision 17 6261 | -6/Cetus | Reached level 20 6302 | -6/Cetus | Destroyed A7 6308 | -6/Cetus | Extracted ID and sensor layout for unrecognized location from A7's data core 6310 | -6/Cetus | Found Prototype Protection 6310 | -6/Cetus | Identified Med. Regenerative Plating 6389 | -6/Cetus | Entered Archives 6389 | -6/Archives | Accompanied by 6 allies 6393 | -6/Archives | Unable to access archive contents 6396 | -6/Archives | Identified exit to Hub_04(d) 6396 | -6/Archives | Discovered exit to Hub_04(d) (range 17) 6397 | -6/Archives | Unable to access archive contents 6409 | -6/Archives | Discovered exit to Factory (range 18) 6428 | -6/Archives | Unable to access archive contents 6428 | -6/Archives | Discovered exit to Hub_04(d) (range 18) 6458 | -6/Archives | Entered Hub_04(d) 6458 | -6/Hub_04(d) | Accompanied by 6 allies 6468 | -6/Hub_04(d) | Discovered exit to Factory (range 19) 6555 | -6/Hub_04(d) | Disrupted transfer network 6563 | -6/Hub_04(d) | Network Hub disabled 6569 | -6/Hub_04(d) | Network Hub disabled 6580 | -6/Hub_04(d) | Network Hub disabled 6583 | -6/Hub_04(d) | Discovered exit to Factory (range 11) 6589 | -6/Hub_04(d) | Network Hub disabled 6633 | -6/Hub_04(d) | Discovered exit to Factory (range 9) 6634 | -6/Hub_04(d) | Entered Factory 6636 | -5/Factory | Reached level 21 6718 | -5/Factory | Identified exit to Upper Caves 6805 | -5/Factory | Entered Upper Caves 6906 | -5/Upper Caves | Attracted the attention of an 0b10 checkpoint 6908 | -5/Upper Caves | Reached level 22 6951 | -5/Upper Caves | Identified exit to Upper Caves 6951 | -5/Upper Caves | Discovered exit to Upper Caves (range 16) 6958 | -5/Upper Caves | Entered another Upper Caves area 6960 | -5/Upper Caves | Identified exit to Factory 6960 | -5/Upper Caves | Discovered exit to Factory (range 13) 6962 | -5/Upper Caves | Upgraded with Power slot (x1) 6971 | -5/Upper Caves | Attracted the attention of an 0b10 outpost 7065 | -5/Upper Caves | Identified exit to Warlord 7065 | -5/Upper Caves | Discovered exit to Warlord (range 8) 7066 | -5/Upper Caves | Entered Warlord 7076 | -5/Warlord | Identified exit to Proximity Caves 7076 | -5/Warlord | Discovered exit to Proximity Caves (range 19) 7099 | -5/Warlord | Met Warlord 7124 | -5/Warlord | Warlord's base attacked by MAIN.C 7129 | -5/Warlord | Found Prototype Energy Cannon 7131 | -5/Warlord | Identified Vortex Cannon 7167 | -5/Warlord | Found Prototype Device 7167 | -5/Warlord | Identified Minesniffer Drone Bay 7225 | -5/Warlord | Opened side exit 7235 | -5/Warlord | Entered Proximity Caves 7237 | -4/Proximity Caves | Reached level 23 7256 | -4/Proximity Caves | Spotted B-86 Titan 7405 | -4/Proximity Caves | Attracted the attention of an 0b10 base 7428 | -4/Proximity Caves | Discovered exit to Factory (range 13) 7431 | -4/Proximity Caves | Entered Factory 7433 | -4/Factory | Reached level 24 7505 | -4/Factory | Identified exit to Upper Caves 7505 | -4/Factory | Identified exit to Armory 7515 | -4/Factory | Spotted B-86 Titan 7556 | -4/Factory | Entered Armory 7598 | -4/Armory | Reached level 25 7602 | -4/Armory | Upgraded with Utility slot (x1) 7846 | -4/Armory | Fabricated Y-64 Sentinel? 7865 | -4/Armory | Identified exit to Research 7865 | -4/Armory | Discovered exit to Research (range 19) 7908 | -4/Armory | Identified exit to Lab 7908 | -4/Armory | Discovered exit to Lab (range 10) 7909 | -4/Armory | Destroyed 7 combat bots 7933 | -4/Armory | Discovered exit to Research (range 17) 7973 | -4/Armory | Spotted B-86 Titan 8041 | -4/Armory | Reached level 26 8277 | -4/Armory | Entered Lab 8277 | -4/Lab | Discovered exit to Research (range 9) 8291 | -4/Lab | Hidden lab's door opened automatically 8291 | -4/Lab | Sensor layout match revealed 8292 | -4/Lab | Gained access to the hidden lab's interior 8302 | -4/Lab | Found Alien Artifact 8302 | -4/Lab | Identified Transdimensional Reconstructor 8302 | -4/Lab | Warped through subspace 8304 | -4/Lab | Unable to decrypt terminal 8310 | -4/Lab | Found Alien Artifact 8310 | -4/Lab | Identified Core Expander 8310 | -4/Lab | Installed Core Expander, added new Power slot 8313 | -4/Lab | Found Alien Artifact 8313 | -4/Lab | Identified Integrated Reactor 8313 | -4/Lab | Installed Integrated Reactor, increased core energy generation (+10) 8321 | -4/Lab | Found Prototype Device 8321 | -4/Lab | Identified AEGIS Remote Shield 8328 | -4/Lab | Found Prototype Energy Gun 8328 | -4/Lab | Identified Tachyon Dispersion Ray 8331 | -4/Lab | Found Prototype Energy Gun 8331 | -4/Lab | Identified Hyp. EM Gauss Rifle 8354 | -4/Lab | Unable to decrypt terminal 8355 | -4/Lab | Entered Research 8357 | -3/Research | Reached level 27 8357 | -3/Research | Upgraded with Propulsion slot (x1) 8380 | -3/Research | Identified exit to Testing 8406 | -3/Research | Found Prototype Device 8406 | -3/Research | Identified Exp. Focal Shield 8443 | -3/Research | Found Antimissile System 8558 | -3/Research | Entered Testing 8560 | -3/Testing | Reached level 28 8582 | -3/Testing | Spotted PX-70FB1VKS2U 8599 | -3/Testing | Rewired PX-70FB1VKS2U 8606 | -3/Testing | Build established: Generator-Scout 8707 | -3/Testing | Scanned by Researcher 8721 | -3/Testing | Found Prototype Energy Cannon 8721 | -3/Testing | Identified Imp. Potential Cannon 8757 | -3/Testing | Garrison activated, responded to threat 8787 | -3/Testing | Identified exit to Research 8787 | -3/Testing | Discovered exit to Research (range 19) 8879 | -3/Testing | Spotted PY-DWKUOOH68H 8896 | -3/Testing | Rewired PY-DWKUOOH68H 8907 | -3/Testing | Entered Research 8907 | -2/Research | Accompanied by 1 ally 8907 | -2/Research | Warlord forces began assault on 0b10 8909 | -2/Research | Reached level 29 8909 | -2/Research | Reached level 30 8909 | -2/Research | Upgraded with Utility slot (x1) 8911 | -2/Research | Found Prototype Device 8911 | -2/Research | Identified Adv. EM Disruption Field 8932 | -2/Research | Found Antimissile System 8941 | -2/Research | Found Prototype Device 8941 | -2/Research | Identified Exp. Transmission Jammer 8979 | -2/Research | Found Prototype Processor 8979 | -2/Research | Identified Exp. Melee Analysis Suite 9008 | -2/Research | Identified exit to Access 9017 | -2/Research | Research machine network offline 9020 | -2/Research | Spotted B-90 Cyclops 9128 | -2/Research | Allies destroyed B-90 Cyclops 9181 | -2/Research | Entered Access 9181 | -1/Access | Accompanied by 1 ally 9183 | -1/Access | Reached level 31 9233 | -1/Access | Reached level 32 9233 | -1/Access | Identified exit to Command 9389 | -1/Access | Spotted B-99 Colossus 9411 | -1/Access | Spotted B-99 Colossus 9431 | -1/Access | Search patrols dispatched 9485 | -1/Access | Spotted B-99 Colossus 9528 | -1/Access | Reached level 33 9542 | -1/Access | Identified exit to Surface 9542 | -1/Access | Discovered exit to Surface (range 17) 9681 | -1/Access | Search patrols dispatched 9733 | -1/Access | Maximum security lockdown engaged 9799 | -1/Access | Entered Command 9801 | -1/Command | Reached level 34 9801 | -1/Command | Upgraded with Propulsion slot (x1) 9931 | -1/Command | Phase Generator disabled 10032 | -1/Command | Spotted B-99 Colossus 10053 | -1/Command | Spotted B-99 Colossus 10088 | -1/Command | Disengaged cave seal 10088 | -1/Command | Derelicts emerged from the dark tunnel 10093 | -1/Command | Welcomed Warlord to Command 10096 | -1/Command | First assault squad dispatched 10166 | -1/Command | Reached level 35 10170 | -1/Command | High security lockdown imminent 10207 | -1/Command | Warlord commented on Warlord statues 10209 | -1/Command | Spotted M Guard 10209 | -1/Command | Spotted M Guard 10209 | -1/Command | Spotted Combat Programmer 10210 | -1/Command | Spotted Combat Programmer 10227 | -1/Command | Destroyed Combat Programmer 10248 | -1/Command | All MAIN.C guards destroyed 10250 | -1/Command | High security lockdown engaged 10287 | -1/Command | Spotted Executioner 10391 | -1/Command | Met MAIN.C 10392 | -1/Command | 0b10 Conduit disabled 10416 | -1/Command | MAIN.C activated Command garrisons 10423 | -1/Command | Discovered exit to Surface (range 12) 10518 | *** | Escaped! Last Messages --------------- 10498_ B-74 Champion suffers critical hit (Destroy). 10500_ C-30 ARC bursts open, deploying its payload. 10500_ G-73 Enforcer unfolds itself. 10503_ C-30 ARC bursts open, deploying its payload. 10503_ B-74 Champion unfolds itself. 10503_ L-61 Swordsman unfolds itself. 10503_ G-73 Enforcer unfolds itself. 10503_ E-15 Imp unfolds itself. 10503_ E-15 Imp suffers critical hit (Destroy). 10503_ Destroyed Lgt. Ion Engine. 10503_ B-74 Champion suffers critical hit (Destroy). 10503_ Destroyed Rnf. Antimatter Reactor. 10503_ E-15 Imp destroyed. 10504_ B-74 Champion suffers critical hit (Burn). 10513_ C-30 ARC bursts open, deploying its payload. 10513_ P-80 Master unfolds itself. 10513_ Acquired 110 matter. 10514_ Acquired 18 matter. 10516_ Slug penetrates Wall. 10517_ P-80 Master resets M-28 Smith, system corruption cleaned. Map ----- +----------------------------------------------------+ | ?????????????????????#p??? ?????????????????? | | ??????#?????"?? ??# ???????????????????"""" | | ??#????? "? ?????### ###???????????????""""""""" | | ?#?#????? ?? ??? ??# ???????????????" " " | | ?#??###? ????? ???#? "" ??#???????????#"" """"" | | ##???##????#?#????##?? T ?####?#####???#"" """"" | | ????###?????########## =??#?### #???# " """"" | | ?????###?#??# ## ###?##?# #???# " | | ?#????#####?# ## #???##?#! #???# " | | ?#???###??##? ## ######## #???#"""""""" | | ???##?#????## ## # ## #???#"" g | | ##?###?#?####? ## # ## #???# | | #?#?####?#??? """" ## # ## #??## x | | #??#####???## """" ## / ###+###### | | ???####?#???# """" *## # #pg xxggg MMM | | #####?####??# """" ## # p+ p MMM " " | | ################+## # # MMM | | p " m # ########## """"" | | p * # #????????# " """ | | #########+######### #!] ] ###??#???# """ | | #/#####?##? ? ?#?## #!] ##???????########## | | !#??# ????# #! #??#??????????????? | | ##?# "" #?### #######????????#????????? | | #### """#???# ###???????#??#??????????? | | "" ##?# T"#???# #????????#????????????? | | """" #? # """#???# @ #?#?#??#?????#????????? | | """" #?##= "" ##??# #??????????????#??????? | | "" #### ???#######?????#??#????????????? | | #?## #?#??????##??#?????????????????? | | #############??#???###?????????????????????? | | ##########?###?????#????????????????????#????????? | | ?##???#######??????##?????????#??????????????????? | | ##????#?#?###?#??#???#?#?????#???????????????????? | | ###?#?####???#?#?###?????#?????????#?#???????????? | | ##?###???#?#???#??##?#??#?????????#??????????????? | | ######?#?##???###????????#??????#??#?????????????? | | #?####?#??####?#?????#??#?#????#????#????????????? | | ####?#??#???#?#?##?##????????????????????????????? | | ####????##?#?#????????????#????#?????????????????? | | #?###?##????#????????????????????????????????????? | | ##????##?#???????#???????????????????????????????? | | ###??#??#????????????????????????????????????????? | | ??##??#??????????????????????????????????????????? | | #?#??#???????????????????????????????????????????? | | #????#???#???????????????????????????????????????? | | ?#?#??#??????????????????????????????????????????? | | ####?????????????????????????????????????????????? | | ##???????????????????????????????????????????????? | | ?????????????????????????????????????????????????? | | ?????????????????????????????????????????????????? | +----------------------------------------------------+ Best States ------------- Heat Dissipation 169 Energy Generation 148 Energy Capacity 1080 Matter Stores 300 Matter Capacity 300 Sight Range 18 Robot Scan Range 24 Terrain Scan Range 24 Terrain Scan Density 710 ECM Strength 2 Cloak Strength 4 Armor Coverage 400 Resistance: KI 65 Resistance: TH 65 Resistance: EX 55 Resistance: EM 85 Resistance: I 35 Resistance: S 35 Resistance: P 35 Weapon Shielding 100 Point Defense Rating 240 Weapon Cycling 15 Phase Shifting 15 Evasion (%) 90 Targeting Accuracy 12 Melee Accuracy 12 Energy Filtering 30 Particle Charging 20 Offensive Hacking 20 Item Schematics ----------------- Adv. Datajack | -4/Factory | Hacked Nova Cannon | -4/Armory | Hacked Q-thruster | -3/Research | Hacked Tesla Bomb Launcher | -3/Testing | Archive Exp. Shield Generator | -3/Testing | Archive Exp. Thermal Generator | -3/Testing | Archive Hvy. Proton Cannon | -3/Testing | Archive Exp. Myomer Leg | -3/Testing | Archive Med. Regenerative Plating | -3/Testing | Hacked Prc. Phase Gun | -3/Testing | Archive Particle Accelerator | -3/Testing | Archive Exp. Optical Array | -3/Testing | Archive Cld. Gravmag System | -3/Testing | Archive Robot Schematics ------------------ None Fabricated ------------ Y-64 Sentinel | x2 | -4/Armory | Preloaded Alien Tech Used ----------------- Transdimensional Reconstructor Core Expander Integrated Reactor Achievements -------------- None Challenges ------------ None RPGLIKE | -11 -10 -9 -8 -8 -7 -7 -7 -7 -7 -6 -6 -6 -6 -6 -6 -5 -5 -5 -5 -4 -4 -4 -4 -3 -3 -2 -1 -1 --------- Run | Scr Mat Mat Mat Sto Fac Low Low Zio Dee Pro Fac Ext Cet Arc Hub Fac Upp Upp War Pro Fac Arm Lab Res Tes Res Acc Com Levels Raised 34 | . . 3 4 3 3 . 1 . 1 1 1 1 1 . . 1 1 . . 1 1 2 . 1 1 2 3 2 XP Earned 58063 | 6000 320 5071 5250 5078 4219 833 527 316 975 1450 1700 1637 1154 246 856 1348 622 435 338 1553 1266 2429 1078 1636 1642 2382 4160 3542 XP Spent 56790 | 5990 . 4440 5930 1560 5750 . 3300 . . 2350 1900 1300 1715 . 225 625 750 1625 . 1500 . 3900 . 1700 450 4360 2650 4770 Upgrades 112 | 21 . 11 14 5 4 . 5 . . 3 3 2 5 . 1 2 3 3 . 1 . 2 . 1 3 5 5 13 Power Slot 3 | . . . 1 . . . . . . 1 . . . . . . . 1 . . . . . . . . . . Propulsion Slot 6 | 1 . 1 2 . . . . . . . . . . . . . . . . . . . . 1 . . . 1 Utility Slot 8 | 2 . 1 . 1 2 . . . . . . . . . . . . . . . . 1 . . . 1 . . Weapon Slot 3 | 1 . . . . 1 . . . . . . 1 . . . . . . . . . . . . . . . . Core Integrity 8 | . . . . 4 . . . . . . . . . . . . . . . . . . . . . . . 4 Heat Dissipation 24 | 2 . 6 4 . . . . . . . 2 . 4 . . . . . . . . . . . . 4 2 . Energy Generation 5 | 2 . . 1 . . . . . . 1 1 . . . . . . . . . . . . . . . . . Energy Storage 8 | . . . . . . . . . . . . 1 . . 1 . . 2 . . . . . . . . . 4 Mass Support 4 | . . 2 . . . . 1 . . . . . . . . . . . . . . 1 . . . . . . Inventory Capacity 6 | 3 . 1 . . 1 . . . . . . . . . . . . . . 1 . . . . . . . . Sight Range 2 | 2 . . . . . . . . . . . . . . . . . . . . . . . . . . . . Sensor Range 12 | 4 . . 5 . . . . . . . . . 1 . . 2 . . . . . . . . . . . . Terrain Scan Density 7 | 3 . . 1 . . . . . . . . . . . . . 3 . . . . . . . . . . . Ranged Accuracy 4 | . . . . . . . 4 . . . . . . . . . . . . . . . . . . . . . KI Resistance % 2 | . . . . . . . . . . . . . . . . . . . . . . . . . 1 . . 1 TH Resistance % 4 | . . . . . . . . . . . . . . . . . . . . . . . . . 1 . 3 . EX Resistance % 4 | . . . . . . . . . . . . . . . . . . . . . . . . . 1 . . 3 TH Damage % 2 | 1 . . . . . . . . . 1 . . . . . . . . . . . . . . . . . . Protomatter Created 4688 | . 13 140 133 556 156 97 131 . 550 52 79 352 119 . 254 149 306 202 . 89 50 610 . . 32 84 131 403 Integrity Restored 5994 | . 15 244 302 856 169 104 150 . 855 14 43 246 102 205 53 291 16 61 . 32 43 721 225 . 120 237 351 539 Core 4017 | . 7 142 187 573 113 67 81 . 602 7 22 144 26 112 43 242 12 48 . 19 34 385 186 . 92 129 292 452 Parts 1977 | . 8 102 115 283 56 37 69 . 253 7 21 102 76 93 10 49 4 13 . 13 9 336 39 . 28 108 59 87 Protomatter Decayed 5443 | . 6 28 16 483 300 23 103 . 282 . 248 263 189 7 212 49 210 147 58 77 35 652 . . 106 549 387 1013 Game ------ Seed ResetMicrowarpCompressor Manual? 0 Play Time 03:51:05 Cumulative 234.0 hours Start 2022.06.09 @ 16:35:12 End 2022.06.10 @ 00:10:01 Sessions 3 Manual Loads 0 Difficulty Explorer Special Mode Winter2019/RPGLIKE Game No. 77 Rogue 0 Adventurer 1 Explorer 76 Win Type 0 Total 16 Types 9/0/4/3/0/0/0/0/0 Lore% 85 Gallery% 86 Achievement% 72 Wizard Run 0 Options --------- ASCII 0 Keyboard 1 Movement Numpad Keybinds 0 Fullscreen 0 Font 14/Terminus Map View 76x50 Tactical HUD 1 Map Filters BRIGHTNESS(150) Filters NONE Steam 1 RUN: 9d483905-7af0-43b7-8ee1-dd79650f6062